bitfinex/quotes_BTCUSD_20250604
["timestamp","ask_amount","ask_price","bid_price","bid_amount"]
[1749038638835,0.03613165,105050.0,105040.0,0.51823515]
[1749038639281,0.03613165,105050.0,105040.0,0.54679315]
[1749038640096,0.03613165,105050.0,105040.0,0.34539315]
[1749038640307,0.43480399,105050.0,105040.0,0.54671315]
[1749038640727,0.43480399,105050.0,105040.0,0.54667315]
[1749038641136,0.03613165,105050.0,105040.0,0.54667315]
[1749038641341,0.43480399,105050.0,105040.0,0.54667315]
[1749038641543,0.03613165,105050.0,105040.0,0.54703315]
[1749038641758,0.43480399,105050.0,105040.0,0.54703315]
[1749038641960,0.03613165,105050.0,105040.0,0.51847515]
[1749038642384,0.00513165,105050.0,105040.0,0.51847515]
[1749038642894,0.00513165,105050.0,105040.0,0.83497515]
[1749038643059,0.00513165,105050.0,105040.0,0.55027515]
[1749038643701,0.00513165,105050.0,105040.0,0.34863515]
[1749038643920,0.00513165,105050.0,105040.0,0.55039515]
[1749038644150,0.00513165,105050.0,105040.0,0.57895015]
[1749038644377,0.00513165,105050.0,105040.0,0.56369015]
[1749038644588,0.00513165,105050.0,105040.0,0.54715015]
[1749038644818,0.00513165,105050.0,105040.0,0.34539015]
[1749038645025,0.00513165,105050.0,105040.0,0.54719015]
[1749038645234,0.00513165,105050.0,105040.0,0.34539015]
[1749038645466,0.00513165,105050.0,105040.0,0.54715015]
[1749038645875,0.00513165,105050.0,105040.0,0.34539015]
[1749038646091,0.00513165,105050.0,105040.0,0.54711015]
[1749038647344,0.00513165,105050.0,105040.0,0.57831015]
[1749038647765,0.00513165,105050.0,105040.0,0.97698249]
[1749038648209,0.00293165,105050.0,105040.0,0.57823015]
[1749038648421,0.00293165,105050.0,105040.0,0.57723015]
[1749038648655,4e-05,105050.0,105040.0,0.97590249]
[1749038648865,0.00204,105050.0,105040.0,0.97590249]
[1749038649078,0.00304,105050.0,105040.0,0.97586249]
[1749038649708,0.00104,105050.0,105040.0,0.97586249]
[1749038649934,4e-05,105050.0,105040.0,0.97586249]
[1749038650140,4e-05,105050.0,105040.0,1.27586249]
[1749038650347,4e-05,105050.0,105040.0,1.27686249]
[1749038650614,4e-05,105050.0,105040.0,0.63015015]
[1749038650842,4e-05,105050.0,105040.0,1.02882249]
[1749038651262,4e-05,105050.0,105040.0,1.02878249]
[1749038652097,4e-05,105050.0,105040.0,1.36878249]
[1749038652316,4e-05,105050.0,105040.0,1.76878249]
[1749038654017,4e-05,105050.0,105040.0,2.01674249]
[1749038654223,4e-05,105050.0,105040.0,2.01670249]
[1749038654862,4e-05,105050.0,105040.0,1.60982249]
[1749038655063,4e-05,105050.0,105040.0,1.76866249]
[1749038655267,4e-05,105050.0,105040.0,1.30982249]
[1749038655468,4e-05,105050.0,105040.0,1.29432249]
[1749038655671,4e-05,105050.0,105040.0,0.53995015]
[1749038655893,4e-05,105050.0,105040.0,0.5254093]
[1749038656098,0.03094,105050.0,105040.0,0.1254093]
[1749038656322,0.03094,105050.0,105040.0,0.28662886]
[1749038656522,4e-05,105050.0,105040.0,0.2842493]
[1749038656731,4e-05,105050.0,105040.0,0.71406249]
[1749038657158,4e-05,105050.0,105040.0,0.71398249]
[1749038657369,4e-05,105050.0,105040.0,1.03048249]
[1749038657571,4e-05,105050.0,105040.0,0.73048249]
[1749038657775,4e-05,105050.0,105040.0,0.57172249]
[1749038657984,4e-05,105050.0,105040.0,0.13995015]
[1749038658371,0.42961234,105050.0,105040.0,0.0968543]
[1749038658582,0.42961234,105050.0,105040.0,0.2557343]
[1749038659022,0.03094,105050.0,105040.0,0.2557343]
[1749038659451,0.03094,105050.0,105040.0,0.0968543]
[1749038659670,0.42961234,105050.0,105040.0,0.0968543]
[1749038660127,0.42961234,105050.0,105040.0,0.2557743]
[1749038660777,0.42961234,105050.0,105040.0,0.001]
[1749038661001,0.03094,105050.0,105040.0,0.15896]
[1749038661221,0.0331,105030.0,105020.0,0.01486907]
[1749038661435,0.43177234,105030.0,105020.0,0.12526422]
[1749038661652,0.43177234,105030.0,105020.0,0.11039515]
[1749038661872,0.83044468,105030.0,105020.0,0.11072452]
[1749038662329,0.83044468,105030.0,105020.0,0.26964452]
[1749038662561,0.83044468,105030.0,105020.0,0.01787022]
[1749038662768,0.83044468,105030.0,105020.0,0.17879022]
[1749038662984,1.17044468,105030.0,105020.0,0.01987022]
[1749038663189,1.17044468,105030.0,105020.0,0.17879022]
[1749038663434,1.17044468,105030.0,105020.0,0.16392]
[1749038663642,1.17996644,105030.0,105020.0,0.16392]
[1749038663865,1.17996644,105030.0,105020.0,0.16192]
[1749038664072,1.17996644,105030.0,105020.0,0.40672]
[1749038664266,1.18496644,105030.0,105020.0,0.2478]
[1749038664497,1.18496644,105030.0,105020.0,0.40664]
[1749038665138,1.18496644,105030.0,105020.0,0.4066]
[1749038665342,1.17544468,105030.0,105020.0,0.4066]
[1749038665758,1.17544468,105030.0,105020.0,0.2054]
[1749038666232,1.17544468,105030.0,105020.0,0.4066]
[1749038666685,0.3781,105030.0,105020.0,0.4066]
[1749038666906,1.17544468,105030.0,105020.0,0.4066]
[1749038667120,1.17544468,105030.0,105020.0,0.2054]
[1749038667333,1.17544468,105030.0,105020.0,0.40664]
[1749038667556,0.43677234,105030.0,105020.0,0.5024943]
[1749038667799,0.43677234,105030.0,105020.0,0.3012543]
[1749038667800,0.0381,105030.0,105020.0,0.3012543]
[1749038668033,0.005,105030.0,105020.0,0.51699515]
[1749038668258,0.005,105030.0,105020.0,0.56109615]
[1749038668920,0.005,105030.0,105020.0,0.34435615]
[1749038669135,0.40367234,105030.0,105020.0,0.54559615]
[1749038669342,0.005,105030.0,105020.0,0.34435615]
[1749038669561,0.005,105030.0,105020.0,0.54559615]
[1749038670031,0.002,105030.0,105020.0,0.54559615]
[1749038670242,0.002,105030.0,105020.0,0.54655615]
[1749038670446,0.002,105030.0,105020.0,0.34535615]
[1749038670686,0.39850486,105040.0,105030.0,0.01454085]
[1749038670904,0.43134486,105050.0,105030.0,0.11039515]
[1749038671131,0.03284,105050.0,105040.0,0.2546543]
[1749038672240,0.03284,105050.0,105040.0,0.2969743]
[1749038672460,0.43134486,105050.0,105040.0,0.2969743]
[1749038672688,0.43334486,105050.0,105040.0,0.2969743]
[1749038672909,0.43334486,105050.0,105040.0,0.0958543]
[1749038673344,0.43634486,105050.0,105040.0,0.0958543]
[1749038673582,0.43634486,105050.0,105040.0,0.2968943]
[1749038673976,0.43634486,105050.0,105040.0,0.0958543]
[1749038673977,0.43634486,105050.0,105040.0,0.2968943]
[1749038674140,0.43634486,105050.0,105040.0,0.0958543]
[1749038674340,0.43634486,105050.0,105040.0,0.2968543]
[1749038674638,0.43634486,105050.0,105040.0,0.0958543]
[1749038674827,0.43634486,105050.0,105040.0,0.2968543]
[1749038674989,0.43634486,105050.0,105040.0,0.0958543]
[1749038675184,0.43634486,105050.0,105040.0,0.2968143]
[1749038678267,0.03784,105050.0,105040.0,0.2968143]
[1749038678715,0.03784,105050.0,105040.0,0.0958543]
[1749038678949,0.03784,105050.0,105040.0,0.2966543]
[1749038680755,0.03784,105050.0,105040.0,0.2965743]
[1749038680986,0.03784,105050.0,105040.0,0.0958543]
[1749038681217,0.03784,105050.0,105040.0,0.2966143]
[1749038681733,0.43634486,105050.0,105040.0,0.2966143]
[1749038682633,0.40354486,105050.0,105040.0,0.20068]
[1749038682868,0.74354486,105050.0,105040.0,0.0424]
[1749038683157,0.74354486,105050.0,105040.0,0.20064]
[1749038683390,0.032,105040.0,105020.0,0.233963]
[1749038683615,0.43050486,105040.0,105030.0,0.2965743]
[1749038684518,0.43050486,105040.0,105030.0,0.2964943]
[1749038685635,0.43050486,105040.0,105030.0,0.2964543]
[1749038686551,0.43050486,105040.0,105030.0,0.2964143]
[1749038686771,0.43150486,105040.0,105030.0,0.2964143]
[1749038687459,0.39950486,105040.0,105020.0,0.2054]
[1749038687679,0.0311,105030.0,105020.0,0.3012543]
[1749038687870,0.0151,105030.0,105020.0,0.5017343]
[1749038688548,0.0151,105030.0,105020.0,0.51660537]
[1749038689202,0.0307,105030.0,105020.0,0.51656537]
[1749038689477,0.42928748,105030.0,105020.0,0.51656537]
[1749038689931,0.42928748,105030.0,105020.0,0.36052537]
[1749038690163,0.39858748,105030.0,105020.0,0.51852537]
[1749038690394,0.42998748,105040.0,105020.0,0.51952537]
[1749038690868,0.42998748,105040.0,105020.0,0.51852537]
[1749038691091,0.42998748,105040.0,105020.0,0.51952537]
[1749038691540,0.42998748,105040.0,105020.0,0.5046543]
[1749038691764,0.42998748,105040.0,105030.0,0.0958543]
[1749038691991,0.41358748,105040.0,105030.0,0.2956143]
[1749038692444,0.42968748,105040.0,105030.0,0.2956143]
[1749038692889,0.42968748,105040.0,105030.0,0.2955743]
[1749038693578,0.43068748,105040.0,105030.0,0.2955743]
[1749038693798,0.39958748,105040.0,105030.0,0.2955743]
[1749038695826,0.39958748,105040.0,105030.0,0.0958543]
[1749038696039,0.39958748,105040.0,105030.0,0.2978343]
[1749038696255,0.39958748,105040.0,105030.0,0.2954543]
[1749038696905,0.43128748,105040.0,105030.0,0.2954543]
[1749038697774,0.43128748,105040.0,105030.0,0.0958543]
[1749038698201,0.43128748,105040.0,105030.0,0.2954543]
[1749038698435,0.43128748,105040.0,105030.0,0.0958543]
[1749038698673,0.39958748,105040.0,105030.0,0.2978343]
[1749038698897,0.39958748,105040.0,105030.0,0.0958543]
[1749038699097,0.001,105040.0,105030.0,0.2954543]
[1749038699559,0.001,105040.0,105030.0,0.3116543]
[1749038700001,0.001,105040.0,105030.0,0.2954543]
[1749038700228,0.39958748,105040.0,105030.0,0.2954543]
[1749038700695,0.43248748,105040.0,105030.0,0.2954543]
[1749038708162,0.77248748,105040.0,105030.0,0.2954543]
[1749038709118,0.43248748,105040.0,105030.0,0.2954543]
[1749038710906,0.43248748,105040.0,105030.0,0.1376543]
[1749038711398,0.43248748,105040.0,105030.0,0.2954543]
[1749038712555,0.39958748,105040.0,105020.0,0.2054]
[1749038712791,0.39958748,105040.0,105030.0,0.2954543]
[1749038712792,0.0321,105040.0,105030.0,0.2954543]
[1749038713034,0.39958748,105040.0,105030.0,0.2954543]
[1749038713264,0.001,105040.0,105030.0,0.0958543]
[1749038713497,0.43088748,105040.0,105030.0,0.2954543]
[1749038714193,0.43088748,105040.0,105030.0,0.1376543]
[1749038714419,0.43088748,105040.0,105030.0,0.2954543]
[1749038716489,0.41578748,105040.0,105030.0,0.2954543]
[1749038717847,0.39958748,105040.0,105030.0,0.2954543]
[1749038719957,0.39958748,105040.0,105030.0,0.3106543]
[1749038720166,0.39958748,105040.0,105030.0,0.3266543]
[1749038720389,0.001,105040.0,105030.0,0.3266543]
[1749038720587,0.001,105040.0,105030.0,0.34119515]
[1749038722066,0.341,105040.0,105030.0,0.34119515]
[1749038723400,0.001,105040.0,105030.0,0.34119515]
[1749038729100,0.001,105040.0,105030.0,1.21431107]
[1749038729333,0.001,105040.0,105030.0,1.14427959]
[1749038729794,0.001,105040.0,105030.0,1.06833863]
[1749038730282,0.001,105040.0,105030.0,1.09737012]
[1749038730502,0.001,105040.0,105030.0,1.10237012]
[1749038730733,0.001,105040.0,105030.0,1.41333863]
[1749038730968,0.002,105040.0,105030.0,1.77553863]
[1749038731198,0.002,105040.0,105030.0,2.07553863]
[1749038731417,0.001,105040.0,105030.0,2.07153863]
[1749038731896,0.002,105040.0,105030.0,2.52412611]
[1749038732352,0.002,105040.0,105030.0,2.12553863]
[1749038732581,0.002,105040.0,105030.0,2.57412611]
[1749038734262,0.002,105040.0,105030.0,2.82128611]
[1749038734712,0.002,105040.0,105030.0,2.95070115]
[1749038735657,0.002,105040.0,105030.0,2.70354115]
[1749038736796,0.00021246,105040.0,105030.0,2.70354115]
[1749038737743,4e-05,105050.0,105040.0,0.74584085]
[1749038737975,4e-05,105050.0,105040.0,1.24028263]
[1749038738201,4e-05,105050.0,105040.0,1.39804263]
[1749038738418,4e-05,105050.0,105040.0,1.42658863]
[1749038738647,4e-05,105050.0,105040.0,1.82658863]
[1749038739346,4e-05,105050.0,105040.0,0.9007003]
[1749038739583,4e-05,105050.0,105040.0,1.0584203]
[1749038739812,4e-05,105050.0,105040.0,1.52154863]
[1749038740779,4e-05,105050.0,105040.0,1.52354863]
[1749038741255,4e-05,105050.0,105040.0,1.82354863]
[1749038741723,4e-05,105050.0,105040.0,1.87354863]
[1749038742172,4e-05,105050.0,105040.0,2.17354863]
[1749038743768,4e-05,105050.0,105040.0,2.01582863]
[1749038743990,4e-05,105050.0,105040.0,2.17354863]
[1749038744215,4e-05,105050.0,105040.0,2.22118863]
[1749038744444,4e-05,105050.0,105040.0,2.42058863]
[1749038745831,4e-05,105050.0,105040.0,2.21522863]
[1749038747895,4e-05,105050.0,105040.0,2.17354863]
[1749038754051,4e-05,105050.0,105040.0,2.42058863]
[1749038755493,4e-05,105050.0,105040.0,2.02196115]
[1749038755692,4e-05,105050.0,105040.0,1.21724115]
[1749038755965,4e-05,105050.0,105040.0,2.18388863]
[1749038756175,4e-05,105050.0,105040.0,1.1714003]
[1749038756381,0.03164,105050.0,105040.0,1.3791203]
[1749038756527,0.03164,105050.0,105040.0,1.72770778]
[1749038756919,0.03164,105050.0,105040.0,1.74224863]
[1749038757358,0.03164,105050.0,105040.0,1.18452863]
[1749038757583,0.03164,105050.0,105040.0,0.64366115]
[1749038758038,0.03164,105050.0,105040.0,0.94366115]
[1749038758948,0.03164,105050.0,105040.0,0.94370115]
[1749038759619,0.03164,105050.0,105040.0,0.78594115]
[1749038759878,0.03164,105050.0,105040.0,1.34220863]
[1749038760598,0.03164,105050.0,105040.0,0.64362115]
[1749038761273,0.03164,105050.0,105040.0,1.04220863]
[1749038762640,0.03164,105050.0,105040.0,1.04224863]
[1749038762899,0.03164,105050.0,105040.0,0.64374115]
[1749038763797,0.03164,105050.0,105040.0,0.64370115]
[1749038764252,0.03164,105050.0,105040.0,0.89074115]
[1749038764480,0.03164,105050.0,105040.0,0.73298115]
[1749038764703,0.03164,105050.0,105040.0,0.89086115]
[1749038768623,0.03164,105050.0,105040.0,1.28944863]
[1749038770438,0.03164,105050.0,105040.0,0.89086115]
[1749038770659,0.03164,105050.0,105040.0,1.28944863]
[1749038772433,0.03164,105050.0,105040.0,1.68944863]
[1749038772651,0.0166,105050.0,105040.0,1.68944863]
[1749038775260,0.0166,105050.0,105040.0,1.48988863]
[1749038775480,0.0166,105050.0,105040.0,1.68928863]
[1749038778581,0.0319,105050.0,105040.0,1.68928863]
[1749038779243,0.0319,105050.0,105040.0,1.29070115]
[1749038780291,0.0319,105050.0,105040.0,1.13298115]
[1749038780527,0.0319,105050.0,105040.0,1.29070115]
[1749038781356,0.0319,105050.0,105040.0,0.95070115]
[1749038783863,0.0166,105050.0,105040.0,0.95070115]
[1749038785436,0.032,105050.0,105040.0,0.35130115]
[1749038785659,0.032,105050.0,105040.0,0.39298115]
[1749038785890,0.032,105050.0,105040.0,0.55070115]
[1749038786346,0.032,105050.0,105040.0,0.54870115]
[1749038786571,0.032,105050.0,105040.0,0.54370115]
[1749038786803,0.0166,105050.0,105040.0,0.54470115]
[1749038787029,0.0166,105050.0,105040.0,0.54770115]
[1749038791441,1.0307,105060.0,105050.0,0.01454085]
[1749038791669,1.0307,105060.0,105050.0,0.11039515]
[1749038792400,1.0307,105060.0,105050.0,0.26811515]
[1749038792618,1.0307,105060.0,105050.0,0.0958543]
[1749038792888,1.43028748,105060.0,105050.0,0.2535343]
[1749038793541,1.43028748,105060.0,105050.0,0.2555343]
[1749038794203,1.43028748,105060.0,105050.0,0.5026143]
[1749038794658,1.0317,105060.0,105050.0,0.5026143]
[1749038797171,1.0317,105060.0,105050.0,0.3032543]
[1749038797383,1.0317,105060.0,105050.0,0.5026143]
[1749038798862,1.0317,105060.0,105050.0,0.5026543]
[1749038799086,1.43028748,105060.0,105050.0,0.5026543]
[1749038799307,1.0317,105060.0,105050.0,0.3449343]
[1749038799537,1.43028748,105060.0,105050.0,0.3449343]
[1749038799762,1.43028748,105060.0,105050.0,0.5026143]
[1749038800207,1.77028748,105060.0,105050.0,0.5026143]
[1749038800424,1.77028748,105060.0,105050.0,0.3032543]
[1749038800643,1.77028748,105060.0,105050.0,0.5026143]
[1749038803468,1.3717,105060.0,105050.0,0.3032543]
[1749038803684,1.77028748,105060.0,105050.0,0.5026143]
[1749038804725,1.3717,105060.0,105050.0,0.3032543]
[1749038804889,1.77028748,105060.0,105050.0,0.5026543]
[1749038805312,1.3717,105060.0,105050.0,0.5026543]
[1749038806382,1.3717,105060.0,105050.0,0.5026143]
[1749038806592,1.3717,105060.0,105050.0,0.3032543]
[1749038807029,1.3717,105060.0,105050.0,0.5026543]
[1749038808098,1.3717,105060.0,105050.0,0.3032543]
[1749038808596,1.3717,105060.0,105050.0,0.5026543]
[1749038808805,1.3717,105060.0,105050.0,0.3449343]
[1749038809031,1.77028748,105060.0,105050.0,0.5026543]
[1749038809240,1.77028748,105060.0,105050.0,0.5026143]
[1749038810554,1.77028748,105060.0,105050.0,0.3032543]
[1749038810976,1.77028748,105060.0,105050.0,0.5026143]
[1749038812758,1.77028748,105060.0,105050.0,0.3032543]
[1749038812980,1.77028748,105060.0,105050.0,0.5026143]
[1749038813847,1.77028748,105060.0,105050.0,0.3032543]
[1749038814058,1.77028748,105060.0,105050.0,0.5026143]
[1749038814482,1.77028748,105060.0,105050.0,0.3032543]
[1749038814699,1.77028748,105060.0,105050.0,0.5026143]
[1749038814913,1.77028748,105060.0,105050.0,0.3032543]
[1749038815142,1.3717,105060.0,105050.0,0.5026143]
[1749038815350,1.77028748,105060.0,105050.0,0.5026143]
[1749038816500,1.77028748,105060.0,105050.0,0.3032543]
[1749038816716,1.77028748,105060.0,105050.0,0.5026143]
[1749038817359,1.77028748,105060.0,105050.0,0.3449343]
[1749038817826,1.77028748,105060.0,105050.0,0.3032543]
[1749038818041,1.77028748,105060.0,105050.0,0.5026143]
[1749038818696,1.77028748,105060.0,105050.0,0.3032543]
[1749038818913,1.77028748,105060.0,105050.0,0.5026143]
[1749038821547,1.77028748,105060.0,105050.0,0.3032543]
[1749038821767,1.77028748,105060.0,105050.0,0.5026143]
[1749038822205,1.77028748,105060.0,105050.0,0.3032543]
[1749038822424,1.77028748,105060.0,105050.0,0.5026143]
[1749038823104,1.3717,105060.0,105050.0,0.5026143]
[1749038823339,1.356,105060.0,105050.0,0.5026143]
[1749038823579,1.341,105060.0,105050.0,0.5185143]
[1749038823801,1.341,105060.0,105050.0,0.54915515]
[1749038823995,1.001,105060.0,105050.0,0.54915515]
[1749038824476,1.001,105060.0,105050.0,0.54431589]
[1749038824695,1.001,105060.0,105050.0,0.34495589]
[1749038824915,1.001,105060.0,105050.0,0.54431589]
[1749038826036,1.001,105060.0,105050.0,0.34495589]
[1749038826491,1.001,105060.0,105050.0,0.54431589]
[1749038828060,1.001,105060.0,105050.0,0.52821589]
[1749038829210,1.001,105060.0,105050.0,0.54401589]
[1749038835895,1.001,105060.0,105050.0,0.94260337]
[1749038836356,1.001,105060.0,105050.0,1.64260337]
[1749038836828,1.001,105060.0,105050.0,1.67115037]
[1749038837306,1.001,105060.0,105050.0,0.56780289]
[1749038837530,1.001,105060.0,105050.0,1.16571037]
[1749038838004,1.001,105060.0,105050.0,1.12403037]
[1749038840180,1.001,105060.0,105050.0,0.92403037]
[1749038840403,1.001,105060.0,105050.0,1.01988467]
[1749038840638,1.001,105060.0,105050.0,1.31988467]
[1749038841741,0.98613676,105060.0,105050.0,1.46224467]
[1749038841980,0.98613676,105060.0,105050.0,1.61988467]
[1749038842219,0.98613676,105060.0,105050.0,1.63442552]
[1749038842435,0.98613676,105060.0,105050.0,0.93583804]
[1749038842879,0.98613676,105060.0,105050.0,1.33442552]
[1749038843399,0.98613676,105060.0,105050.0,1.36592552]
[1749038844063,0.98613676,105060.0,105050.0,1.57128552]
[1749038844291,0.98613676,105060.0,105050.0,1.61292552]
[1749038844763,0.98613676,105060.0,105050.0,1.21433804]
[1749038844983,0.98613676,105060.0,105050.0,1.61292552]
[1749038845867,0.98613676,105060.0,105050.0,1.40756552]
[1749038846095,0.98613676,105060.0,105050.0,1.36592552]
[1749038847427,0.98613676,105060.0,105050.0,0.79439804]
[1749038847643,0.98613676,105060.0,105050.0,0.95203804]
[1749038847863,0.98613676,105060.0,105050.0,0.79439804]
[1749038848098,0.98613676,105060.0,105050.0,0.95203804]
[1749038849239,0.98613676,105060.0,105050.0,0.79439804]
[1749038849477,1.00143676,105060.0,105050.0,0.11039515]
[1749038849718,1.01723676,105060.0,105050.0,0.26799515]
[1749038849944,0.98613676,105060.0,105050.0,0.26799515]
[1749038850883,0.98613676,105060.0,105050.0,0.99838263]
[1749038851102,0.98613676,105060.0,105050.0,0.69838263]
[1749038851328,0.98613676,105060.0,105050.0,0.99838263]
[1749038851552,0.98613676,105060.0,105050.0,0.69838263]
[1749038852908,0.97127676,105060.0,105050.0,0.69838263]
[1749038853165,0.95641296,105060.0,105050.0,1.02693063]
[1749038854044,0.95641296,105060.0,105050.0,1.23229063]
[1749038854260,0.95641296,105060.0,105050.0,1.27393063]
[1749038854773,0.95641296,105060.0,105050.0,1.67393063]
[1749038855646,0.95641296,105060.0,105050.0,1.27534315]
[1749038855879,0.95641296,105060.0,105050.0,1.25984315]
[1749038858782,0.95641296,105060.0,105050.0,1.07000315]
[1749038858998,0.95641296,105060.0,105050.0,1.02836315]
[1749038860709,0.95641296,105060.0,105050.0,1.42695063]
[1749038863688,0.95641296,105060.0,105050.0,1.02836315]
[1749038863943,0.95641296,105060.0,105050.0,1.26883063]
[1749038864140,0.95641296,105060.0,105050.0,0.3297623]
[1749038864141,0.97241296,105060.0,105050.0,0.3297623]
[1749038864345,1.38720044,105060.0,105050.0,0.3428543]
[1749038864513,1.38720044,105060.0,105050.0,0.5008143]
[1749038864714,1.38720044,105060.0,105050.0,0.51535515]
[1749038865906,2.12578792,105060.0,105050.0,0.5007343]
[1749038866366,2.12578792,105060.0,105050.0,0.5007743]
[1749038866796,2.12578792,105060.0,105050.0,0.3012143]
[1749038867013,2.12578792,105060.0,105050.0,0.5007343]
[1749038867228,2.12578792,105060.0,105050.0,0.3012143]
[1749038867443,1.72720044,105060.0,105050.0,0.5007343]
[1749038868568,1.32861296,105060.0,105050.0,0.5007343]
[1749038868780,1.32861296,105060.0,105050.0,0.51527515]
[1749038870115,1.72720044,105060.0,105050.0,0.51527515]
[1749038872164,1.32861296,105060.0,105050.0,0.51527515]
[1749038874055,1.32861296,105060.0,105050.0,0.54382615]
[1749038877179,0.95641296,105060.0,105050.0,0.54382615]
[1749038877405,0.95641296,105060.0,105050.0,1.27321363]
[1749038877910,0.95641296,105060.0,105050.0,1.06926615]
[1749038878558,0.95641296,105060.0,105050.0,1.02762615]
[1749038882604,0.95641296,105060.0,105050.0,1.77621363]
[1749038882818,0.95641296,105060.0,105050.0,1.61833363]
[1749038883047,0.95641296,105060.0,105050.0,1.77613363]
[1749038884045,0.95641296,105060.0,105050.0,2.02321363]
[1749038885660,0.95641296,105060.0,105050.0,1.62462615]
[1749038889765,0.95641296,105060.0,105050.0,1.37754615]
[1749038889981,0.95641296,105060.0,105050.0,1.82613363]
[1749038890886,0.95641296,105060.0,105050.0,1.42754615]
[1749038891112,0.95641296,105060.0,105050.0,1.82613363]
[1749038892222,0.95641296,105060.0,105050.0,1.21974615]
[1749038892459,0.95641296,105060.0,105050.0,1.37738615]
[1749038894052,0.95641296,105060.0,105050.0,1.58274615]
[1749038894241,0.95641296,105060.0,105050.0,1.62446615]
[1749038898853,0.95641296,105060.0,105050.0,1.37738615]
[1749038899343,0.95641296,105060.0,105050.0,1.82597363]
[1749038900049,0.95641296,105060.0,105050.0,1.42738615]
[1749038900275,0.95641296,105060.0,105050.0,1.82597363]
[1749038900510,0.95541296,105060.0,105050.0,1.82597363]
[1749038900784,0.95541296,105060.0,105050.0,1.32033363]
[1749038901012,0.95541296,105060.0,105050.0,1.83013363]
[1749038901945,0.95541296,105060.0,105050.0,1.83313363]
[1749038902840,0.95541296,105060.0,105050.0,1.43454615]
[1749038903085,0.95541296,105060.0,105050.0,1.1794053]
[1749038903304,0.97161296,105060.0,105050.0,1.2890453]
[1749038903542,0.97161296,105060.0,105050.0,1.3390453]
[1749038903760,0.97161296,105060.0,105050.0,1.19394615]
[1749038903985,0.97161296,105060.0,105050.0,1.35358615]
[1749038904212,0.97161296,105060.0,105050.0,1.60062615]
[1749038905397,0.95541296,105060.0,105050.0,1.60062615]
[1749038906095,0.95541296,105060.0,105050.0,2.07971363]
[1749038906760,0.95541296,105060.0,105050.0,2.06461363]
[1749038907239,0.95541296,105060.0,105050.0,1.66602615]
[1749038908498,0.95541296,105060.0,105050.0,1.61602615]
[1749038909405,0.95541296,105060.0,105050.0,1.60062615]
[1749038909650,0.97071296,105060.0,105050.0,1.60062615]
[1749038910121,0.97071296,105060.0,105050.0,1.19394615]
[1749038910349,0.97071296,105060.0,105050.0,1.14394615]
[1749038910570,0.98631296,105060.0,105050.0,1.30330615]
[1749038910809,0.98631296,105060.0,105050.0,1.00334615]
[1749038911053,1.38490044,105060.0,105050.0,0.5888053]
[1749038911274,0.98631296,105060.0,105050.0,0.5888053]
[1749038911498,0.98631296,105060.0,105050.0,1.00334615]
[1749038912653,0.98631296,105060.0,105050.0,1.00322615]
[1749038914195,0.98631296,105060.0,105050.0,1.25134615]
[1749038915993,0.98631296,105060.0,105050.0,1.04926615]
[1749038916215,0.98631296,105060.0,105050.0,1.25122615]
[1749038917595,0.98631296,105060.0,105050.0,1.04590615]
[1749038917811,0.97071296,105060.0,105050.0,1.04590615]
[1749038918044,0.97071296,105060.0,105050.0,1.00310615]
[1749038918269,0.97071296,105060.0,105050.0,1.30310615]
[1749038918530,1.29541296,105060.0,105050.0,1.30310615]
[1749038920131,0.95541296,105060.0,105050.0,1.30310615]
[1749038921339,1.29541296,105060.0,105050.0,1.30310615]
[1749038921555,1.31091296,105060.0,105050.0,1.30310615]
[1749038921999,0.98681296,105060.0,105050.0,0.84394615]
[1749038922223,0.98681296,105060.0,105050.0,1.00294615]
[1749038923767,0.98681296,105060.0,105050.0,0.99794615]
[1749038923998,0.98681296,105060.0,105050.0,1.00094615]
[1749038924225,0.98681296,105060.0,105050.0,1.24910615]
[1749038924459,0.97091296,105060.0,105050.0,1.04730615]
[1749038924691,0.97091296,105060.0,105050.0,1.24902615]
[1749038926502,0.97091296,105060.0,105050.0,1.04366615]
[1749038926750,0.95541296,105060.0,105050.0,1.34366615]
[1749038926993,0.95541296,105060.0,105050.0,1.31666615]
[1749038930214,0.95541296,105060.0,105050.0,1.36666615]
[1749038931543,0.97111296,105060.0,105050.0,1.35086615]
[1749038932801,0.98761296,105060.0,105050.0,1.30046615]
[1749038934172,0.98761296,105060.0,105050.0,1.54862615]
[1749038935342,0.97111296,105060.0,105050.0,1.54862615]
[1749038938185,0.95541296,105060.0,105050.0,1.34326615]
[1749038938405,0.95541296,105060.0,105050.0,1.30046615]
[1749038938653,0.95541296,105060.0,105050.0,1.31556615]
[1749038939799,0.95541296,105060.0,105050.0,1.30046615]
[1749038941609,0.97131296,105060.0,105050.0,1.30046615]
[1749038941846,0.98691296,105060.0,105050.0,1.14194615]
[1749038942092,0.98691296,105060.0,105050.0,1.30018615]
[1749038944072,0.98691296,105060.0,105050.0,1.54766615]
[1749038945240,1.38550044,105060.0,105050.0,1.04730615]
[1749038945570,1.38550044,105060.0,105050.0,1.24750615]
[1749038945790,0.98691296,105060.0,105050.0,1.04214615]
[1749038948759,0.98691296,105060.0,105050.0,0.84194615]
[1749038948974,1.38550044,105060.0,105050.0,0.14194615]
[1749038949182,1.38550044,105060.0,105050.0,0.29982615]
[1749038949597,1.38550044,105060.0,105050.0,0.14194615]
[1749038949837,1.38550044,105060.0,105050.0,0.29982615]
[1749038950011,1.38550044,105060.0,105050.0,0.14194615]
[1749038950208,1.38550044,105060.0,105050.0,0.29978615]
[1749038950910,1.38550044,105060.0,105050.0,0.1274053]
[1749038951043,1.38550044,105060.0,105050.0,0.2852053]
[1749038951457,1.38550044,105060.0,105050.0,0.2566543]
[1749038952302,1.38550044,105060.0,105050.0,0.2566143]
[1749038953846,1.38550044,105060.0,105050.0,0.2565743]
[1749038954074,1.38550044,105060.0,105050.0,0.5040543]
[1749038954690,1.38550044,105060.0,105050.0,0.81859515]
[1749038958750,1.38550044,105060.0,105050.0,0.61323515]
[1749038959396,1.38550044,105060.0,105050.0,0.41339515]
[1749038959622,1.38550044,105060.0,105050.0,0.57111515]
[1749038959837,0.98691296,105060.0,105050.0,0.57111515]
[1749038960271,1.32691296,105060.0,105050.0,0.59966515]
[1749038960698,1.31131296,105060.0,105050.0,0.59966515]
[1749038961590,1.32711296,105060.0,105050.0,0.59966515]
[1749038963857,1.72570044,105060.0,105050.0,0.44194515]
[1749038964070,1.72570044,105060.0,105050.0,0.84714515]
[1749038965161,1.72570044,105060.0,105050.0,0.64730515]
[1749038965385,1.72570044,105060.0,105050.0,0.84714515]
[1749038965610,1.72570044,105060.0,105050.0,0.54714515]
[1749038966751,1.72570044,105060.0,105050.0,0.34178515]
[1749038966976,1.72570044,105060.0,105050.0,0.29966515]
[1749038967651,1.72570044,105060.0,105050.0,0.2565743]